fUSD/lending_fUSD_20240322
["ID","MTS","AMOUNT","RATE_DAILY","PERIOD"]
[320031095,1711088549316,-2110.0,0.000445,15]
[320031096,1711088549339,-20000.0,0.000445,120]
[320031097,1711088549363,-2000.0,0.000445,30]
[320031098,1711088549386,-250.0,0.000445,60]
[320031099,1711088549410,-600.0,0.000445,120]
[320031100,1711088549434,-527.64194518,0.000445,30]
[320031101,1711088549458,-527.64194518,0.00044545,30]
[320031102,1711088549481,-527.64194518,0.00044591,30]
[320031103,1711088549504,-527.64194518,0.00044636,30]
[320031104,1711088549528,-1140.32,0.00044657,120]
[320031105,1711088549554,-242.61528013,0.00044657,30]
[320031106,1711088549578,-4221.71150246,0.0004466,30]
[320031107,1711088549605,-4221.71150246,0.00044663,30]
[320031108,1711088549629,-242.61528013,0.00044666,30]
[320031109,1711088549653,-242.61528013,0.00044667,30]
[320031110,1711088549679,-4221.71150246,0.00044676,30]
[320031111,1711088549704,-4221.71150246,0.00044681,30]
[320031112,1711088549727,-527.64194518,0.00044682,30]
[320031113,1711088549751,-4221.71150246,0.00044689,30]
[320031114,1711088549775,-4221.71150246,0.00044691,30]
[320031115,1711088549801,-242.61528013,0.00044693,30]
[320031116,1711088549825,-4221.71150246,0.00044694,30]
[320031117,1711088549850,-242.61528013,0.00044697,30]
[320031118,1711088549874,-242.61528013,0.00044698,30]
[320031119,1711088549899,-242.61528013,0.00044699,30]
[320031120,1711088549921,-8322.47900226,0.00044706,65]
[320031121,1711088549949,-1000.0,0.00044726,30]
[320031122,1711088549983,-527.64194518,0.00044727,30]
[320031123,1711088550012,-527.64194518,0.00044773,30]
[320031124,1711088550043,-150.0,0.000448,20]
[320031125,1711088550075,-4377.74273318,0.000448,20]
[320031126,1711088550106,-527.64194518,0.00044818,30]
[320031127,1711088550133,-527.64194518,0.00044864,30]
[320031128,1711088550163,-300000.0,0.0004487,35]
[320031129,1711088550192,-651.0,0.0004488,18]
[320031130,1711088550221,-300000.0,0.0004488,17]
[320031131,1711088550245,-500.0,0.000449,60]
[320031132,1711088550276,-527.64194518,0.00044909,30]
[320031133,1711088550307,-1140.32,0.00044931,120]
[320031134,1711088550340,-527.64194518,0.00044955,30]
[320031135,1711088550370,-1000.0,0.00045,30]
[320031136,1711088550402,-203756.13108608,0.00045,15]
[320031137,1711088554242,-748.63739361,0.00040182,30]
[320031138,1711088554273,-748.63739361,0.00040872,30]
[320031139,1711088554542,-1064833.64007912,0.00045,15]
[320031140,1711088554565,-7644.05429408,0.00045,90]
[320031141,1711088554588,-139625.82120653,0.00045,45]
[320031142,1711088554613,-27853.0672572,0.00045,30]
[320031143,1711088554636,-2001.41490079,0.00045,30]
[320031144,1711088554661,-33020.42939604,0.00045,120]
[320031145,1711088554684,-304894.73119913,0.00045,30]
[320031146,1711088554708,-1000.0,0.00045,120]
[320031147,1711088554730,-417629.56687989,0.00045,30]
[320031148,1711088558186,-178.50924555,0.00040086,30]
[320031149,1711088558214,-748.63739361,0.0004108,30]
[320031150,1711088558311,-748.63739361,0.00041392,30]
[320031151,1711088558336,-178.50924555,0.00041418,30]
[320031152,1711088558358,-748.63739376,0.00041547,30]
[320031153,1711088558398,-178.50924555,0.00041712,30]
[320031154,1711088558442,-178.50924555,0.00042285,30]
[320031155,1711088558465,-178.50924555,0.00042327,30]
[320031156,1711088558524,-40000.0,0.000438,70]
[320031157,1711088558572,-479786.71388659,0.00045,30]
[320031158,1711088558597,-500.0,0.00045,20]
[320031159,1711088558619,-4000.0,0.00045,40]
[320031160,1711088558642,-2100.0,0.00045,30]
[320031161,1711088558666,-1004.45146818,0.00045,120]
[320031162,1711088558694,-81397.41216925,0.00045,30]
[320031163,1711088558717,-484.85184746,0.00045,15]
[320031164,1711088558739,-2364.99996972,0.00045,120]
[320031165,1711088558761,-676.47432321,0.00045,61]
[320031166,1711088558784,-212.61699786,0.00045,30]
[320031167,1711088558807,-255.02629177,0.00045,60]
[320031168,1711088558831,-2110.0,0.00045,15]
[320031169,1711088558854,-500.0,0.00045,120]
[320031170,1711088558877,-2885.37,0.00045,60]
[320031171,1711088558902,-11385.906402,0.00045,30]
[320031172,1711088558925,-2000.0,0.00045,30]
[320031173,1711088558948,-250.0,0.00045,60]
[320031174,1711088558970,-291.55704224,0.00045,120]
[320031175,1711088558992,-160.0,0.00045,21]
[320031176,1711088559015,-1001.0,0.00045,30]
[320031177,1711088559038,-1000.00023335,0.00045,120]
[320031178,1711088559060,-10000.0,0.00045,40]
[320031179,1711088559084,-2968.54199456,0.00045,60]
[320031180,1711088559107,-214.0,0.00045,30]
[320031181,1711088559129,-217.0,0.00045,30]
[320031182,1711088559154,-220.0,0.00045,30]
[320031183,1711088559176,-238.0,0.00045,30]
[320031184,1711088559199,-228.0,0.00045,30]
[320031185,1711088559223,-12253.0,0.00045,35]
[320031186,1711088559245,-1027.0,0.00045,30]
[320031187,1711088559268,-527.64194518,0.00045,30]
[320031188,1711088559290,-203.71772083,0.00045,30]
[320031189,1711088559315,-186.75517048,0.00045,30]
[320031190,1711088559340,-114801.1555,0.0004514,30]
[320031191,1711088559368,-684852.85,0.0004518,120]
[320031192,1711088559392,-1140.32,0.00045205,120]
[320031193,1711088559418,-5000.0,0.00045237,30]
[320031194,1711088559441,-5000.0,0.00045237,30]
[320031195,1711088559463,-1000.0,0.00045274,30]
[320031196,1711088559486,-1000.0,0.000454,120]
[320031197,1711088559509,-1140.32,0.00045479,120]
[320031198,1711088559535,-2110.0,0.000455,15]
[320031199,1711088559558,-250.0,0.000455,120]
[320031200,1711088559582,-1000.0,0.00045548,30]
[320031201,1711088559609,-157.87854598,0.00045622,28]
[320031202,1711088559633,-1140.32,0.00045753,120]
[320031203,1711088559662,-1000.0,0.00045822,30]
[320031204,1711088559686,-200000.0,0.00046,36]
[320031205,1711088559711,-500.0,0.00046,46]
[320031206,1711088559735,-1000.0,0.00046,120]
[320031207,1711088559757,-10000.0,0.00046,30]
[320031208,1711088559780,-1000.0,0.00046,30]
[320031209,1711088559988,-4819.65834973,0.00046,30]
[320031210,1711088560013,-2110.0,0.00046,15]
[320031211,1711088560037,-250.0,0.00046,120]
[320031212,1711088560061,-1140.32,0.00046027,120]
[320031213,1711088560087,-1000.0,0.00046096,30]
[320031214,1711088560110,-8322.47900226,0.00046153,70]
[320031215,1711088560134,-1140.32,0.00046301,120]
[320031216,1711088560164,-1000.0,0.0004637,30]
[320031217,1711088560188,-10000.0,0.000465,40]
[320031218,1711088560210,-2110.0,0.000465,15]
[320031219,1711088560232,-250.0,0.000465,120]
[320031220,1711088560255,-1140.32,0.00046575,120]
[320031221,1711088560280,-350.71,0.00046575,120]
[320031222,1711088560303,-26117.83635606,0.000466,30]
[320031223,1711088560327,-1000.0,0.00046644,30]
[320031224,1711088560350,-3212.0,0.0004678,90]
[320031225,1711088560373,-1140.32,0.00046849,120]
[320031226,1711088560399,-1000.0,0.00046918,30]
[320031227,1711088560423,-200000.0,0.00047,37]
[320031228,1711088560445,-10000.0,0.00047,30]
[320031229,1711088560467,-150.0,0.00047,30]
[320031230,1711088560491,-11000.0,0.00047,45]
[320031231,1711088560513,-2340.91436639,0.00047,120]
[320031232,1711088560536,-167.99,0.00047,15]
[320031233,1711088560559,-250.0,0.00047,120]
[320031234,1711088560582,-1140.32,0.00047123,120]
[320031235,1711088560612,-1027.0,0.0004725,30]
[320031236,1711088560636,-1140.46915109,0.00047397,120]
[320031237,1711088560663,-1000.0,0.00047466,30]
[320031238,1711088560690,-250.0,0.000475,120]
[320031239,1711088560713,-7548.00285708,0.000476,120]
[320031240,1711088563415,-427.65405365,0.00040739,30]
[320031241,1711088563488,-427.65405365,0.00041154,30]
[320031242,1711088563590,-178.50924556,0.00042584,30]
[320031243,1711088563615,-427.65405365,0.00042589,30]
[320031244,1711088563639,-427.65405365,0.00042596,30]
[320031245,1711088563670,-427.65405365,0.00042882,30]
[320031246,1711088563713,-427.65405379,0.00043389,30]
[320031247,1711088563816,-32543.12180609,0.000476,120]
[320031248,1711088563859,-8322.47900226,0.000476,75]
[320031249,1711088563896,-157.87854598,0.000476,35]
[320031250,1711088563919,-1400.0,0.000476,30]
[320031251,1711088563941,-94859.31854323,0.000477,120]
[320031252,1711088563964,-128625.62707284,0.000477,120]
[320031253,1711088563988,-6461.6,0.000477,120]
[320031254,1711088564011,-40000.0,0.000478,120]
[320031255,1711088564033,-1000.0,0.00047999,120]
[320031256,1711088564066,-200000.0,0.00048,38]
[320031257,1711088564090,-150.0,0.00048,30]
[320031258,1711088564114,-150.0,0.00048,20]
[320031259,1711088564138,-10000.0,0.00048,120]
[320031260,1711088564166,-10000.0,0.00048,120]
[320031261,1711088564189,-2000.0,0.00048,70]
[320031262,1711088564211,-1000.0,0.00048,60]
[320031263,1711088564233,-39033.32972361,0.00048,120]
[320031264,1711088564255,-1064.49597916,0.00048,120]
[320031265,1711088564277,-250.0,0.00048,120]
[320031266,1711088564301,-107264.585,0.00048,120]
[320031267,1711088564323,-9317.716,0.00048,120]
[320031268,1711088564345,-107264.586,0.00048,120]
[320031269,1711088564367,-1888.448,0.00048,120]
[320031270,1711088564389,-9317.716,0.00048,120]
[320031271,1711088564413,-107264.586,0.00048,120]
[320031272,1711088564435,-1888.449,0.00048,120]
[320031273,1711088564458,-9317.717,0.00048,120]
[320031274,1711088564479,-107264.586,0.00048,120]
[320031275,1711088564501,-1888.449,0.00048,120]
[320031276,1711088564523,-9317.716,0.00048,120]
[320031277,1711088564545,-107264.586,0.00048,120]
[320031278,1711088564568,-1888.449,0.00048,120]
[320031279,1711088564590,-9317.716,0.00048,120]
[320031280,1711088564617,-1888.449,0.00048,120]
[320031281,1711088564640,-389.922274,0.00048,25]
[320031282,1711088564664,-1000.0,0.00048014,30]
[320031283,1711088564857,-5000.0,0.00048237,30]
[320031284,1711088564880,-5000.0,0.00048237,30]
[320031285,1711088564904,-5000.0,0.00048286,30]
[320031286,1711088564927,-268.11,0.000484,120]
[320031287,1711088564950,-250.0,0.000485,120]
[320031288,1711088564973,-5000.0,0.00048526,30]
[320031289,1711088564995,-1000.0,0.00048562,30]
[320031290,1711088565017,-263091.55,0.0004869,120]
[320031291,1711088565041,-5465.0,0.000487,117]
[320031292,1711088565063,-15000.0,0.00048784,31]
[320031293,1711088565085,-10000.0,0.000488,30]
[320031294,1711088565107,-4500.0,0.000488,120]
[320031295,1711088565129,-160.0,0.00048889,30]
[320031296,1711088565153,-552.99726181,0.000489,120]
[320031297,1711088565176,-1076.78109854,0.000489,120]
[320031298,1711088565198,-1000.0,0.000489,60]
[320031299,1711088565223,-200000.0,0.00049,39]
[320031300,1711088565246,-1797.0,0.00049,120]
[320031301,1711088565267,-150.0,0.00049,30]
[320031302,1711088565290,-7949.0,0.00049,120]
[320031303,1711088565312,-150.0,0.00049,20]
[320031304,1711088565336,-405.0,0.00049,120]
[320031305,1711088565360,-75000.0,0.00049,120]
[320031306,1711088565382,-721.17618442,0.00049,30]
[320031307,1711088565406,-19267.52708299,0.00049,120]
[320031308,1711088565429,-3000.0,0.00049,120]
[320031309,1711088565452,-27155.8812298,0.00049,60]
[320031310,1711088565474,-1000.0,0.00049,120]
[320031311,1711088565497,-500.0,0.00049,30]
[320031312,1711088565519,-9364.91256608,0.00049,120]
[320031313,1711088565541,-250.0,0.00049,120]
[320031314,1711088565563,-5015.57702548,0.00049,120]
[320031315,1711088565585,-1000.0,0.0004911,30]
[320031316,1711088565611,-151403.52703611,0.00049216,60]
[320031317,1711088568896,-299.22344795,0.0003,30]
[320031318,1711088568923,-155.50738152,0.000305,30]
[320031319,1711088569215,-1048421.48562389,0.00049216,60]
[320031320,1711088569238,-5000.0,0.00049237,30]
[320031321,1711088569262,-12021.0,0.000493,120]
[320031322,1711088569285,-14973.0,0.000493,120]
[320031323,1711088569311,-300.0,0.00049315,30]
[320031324,1711088569336,-300.0,0.00049315,30]
[320031325,1711088569358,-300.0,0.00049315,30]
[320031326,1711088569382,-300.0,0.00049315,30]
[320031327,1711088569405,-300.0,0.00049315,30]
[320031328,1711088569429,-300.0,0.00049315,30]
[320031329,1711088569453,-300.0,0.00049315,30]
[320031330,1711088569476,-200.0,0.00049315,30]
[320031331,1711088569499,-271.0,0.00049315,30]
[320031332,1711088569523,-1007.25,0.00049315,60]
[320031333,1711088569545,-922.0,0.00049315,120]
[320031334,1711088569568,-214.0,0.00049315,120]
[320031335,1711088569593,-151.0,0.00049315,120]
[320031336,1711088569619,-151.0,0.00049315,120]
[320031337,1711088569644,-151.0,0.00049315,120]
[320031338,1711088569670,-151.0,0.00049315,120]
[320031339,1711088569694,-151.0,0.00049315,120]
[320031340,1711088569719,-151.0,0.00049315,120]
[320031341,1711088569747,-151.0,0.00049315,120]
[320031342,1711088569772,-151.0,0.00049315,120]
[320031343,1711088569797,-151.0,0.00049315,120]
[320031344,1711088569821,-153.639872,0.00049315,120]
[320031345,1711088569848,-309.681128,0.00049315,120]
[320031346,1711088569870,-309.681128,0.00049315,120]
[320031347,1711088569893,-309.681128,0.00049315,120]
[320031348,1711088569918,-309.681128,0.00049315,120]
[320031349,1711088569941,-309.681128,0.00049315,120]
[320031350,1711088569963,-309.681128,0.00049315,120]
[320031351,1711088570242,-309.681128,0.00049315,120]
[320031352,1711088570267,-309.681128,0.00049315,120]
[320031353,1711088570291,-309.681128,0.00049315,120]
[320031354,1711088570316,-309.681128,0.00049315,120]
[320031355,1711088570339,-309.681128,0.00049315,120]
[320031356,1711088570362,-309.681128,0.00049315,120]
[320031357,1711088570386,-309.681128,0.00049315,120]
[320031358,1711088570411,-309.681128,0.00049315,120]
[320031359,1711088570434,-309.681128,0.00049315,120]
[320031360,1711088570458,-309.681128,0.00049315,120]
[320031361,1711088570481,-309.681128,0.00049315,120]
[320031362,1711088570504,-309.681128,0.00049315,120]
[320031363,1711088570527,-309.681128,0.00049315,120]
[320031364,1711088570550,-309.681126,0.00049315,120]
[320031365,1711088570574,-350.71,0.00049315,120]
[320031366,1711088573135,212.66494544,0.00044727,30]
[320031367,1711088574970,484.94963882,0.00044727,15]
[320031368,1711088577548,150.0,0.00032877,30]
[320031369,1711088577980,150.0,0.00033499,30]
[320031370,1711088578025,150.0,0.00037799,30]
[320031371,1711088578060,150.0,0.00032877,30]
[320031372,1711088578374,150.0,0.00033499,30]
[320031373,1711088578549,150.0,0.00037799,30]
[320031374,1711088578718,150.0,0.00032877,30]
[320031375,1711088578901,150.0,0.00033499,30]
[320031376,1711088579038,150.0,0.00037799,30]
[320031377,1711088579206,150.0,0.00032877,30]
[320031378,1711088579361,150.0,0.00033499,30]
[320031379,1711088579506,150.0,0.00037799,30]
[320031380,1711088579651,150.0,0.00032877,30]
[320031381,1711088579814,150.0,0.00033499,30]
[320031382,1711088579963,150.0,0.00037799,30]
[320031383,1711088580110,150.0,0.00032877,30]
[320031384,1711088580274,150.0,0.00033499,30]
[320031385,1711088580422,150.0,0.00037799,30]
[320031386,1711088580602,150.0,0.00032877,30]
[320031387,1711088580767,150.0,0.00033499,30]
[320031388,1711088580923,500.0,0.00049,30]
[320031389,1711088580952,150.0,0.00037799,30]
[320031390,1711088581076,150.0,0.00032877,30]
[320031391,1711088581218,40000.0,0.000438,70]
[320031392,1711088581247,150.0,0.00033499,30]
[320031393,1711088581386,150.0,0.00037799,30]
[320031394,1711088581527,150.0,0.00032877,30]
[320031395,1711088581691,150.0,0.00033499,30]
[320031396,1711088581837,150.0,0.00037799,30]
[320031397,1711088582120,150.0,0.00032877,30]
[320031398,1711088583373,5333.14,0.00025005,120]
[320031399,1711088750967,-2029.16531663,0.000178,2]
[320031400,1711088750990,-150.0,0.0001784,2]
[320031401,1711088751013,-300.0,0.0001784,2]
[320031402,1711088751035,-8372.51641376,0.00017841,2]
[320031403,1711088751059,-174.51492063,0.00017898,2]
[320031404,1711088751085,-151.032215,0.00017998,2]
[320031405,1711088751109,-151.032215,0.00017998,2]
[320031406,1711088751133,-151.032215,0.00017998,2]
[320031407,1711088751157,-151.032215,0.00017998,2]
[320031408,1711088751181,-151.032215,0.00017998,2]
[320031409,1711088751206,-151.032215,0.00017998,2]
[320031410,1711088751230,-151.032215,0.00017998,2]
[320031411,1711088751252,-151.032215,0.00017998,2]
[320031412,1711088751276,-151.032215,0.00017998,2]
[320031413,1711088751299,-250.0,0.00017999,2]
[320031414,1711088751323,-452.29749972,0.00018379,2]
[320031415,1711088751346,-278.0,0.0001838,2]
[320031416,1711088751370,-500.0,0.00018547,2]
[320031417,1711088751398,-266.27,0.00018868,2]
[320031418,1711088751422,-750.0,0.00019095,2]
[320031419,1711088751444,-1041.70521948,0.00019178,2]
[320031420,1711088751468,-256.17866123,0.00019178,2]
[320031421,1711088751491,-1000.0,0.00019643,2]
[320031422,1711088751514,-1000.0,0.00020005,2]
[320031423,1711088751540,-853.24,0.00020018,2]
[320031424,1711088751564,-461.61,0.0002007,2]
[320031425,1711088751587,-20430.63,0.00020141,2]
[320031426,1711088751610,-250.0,0.00020157,2]
[320031427,1711088751633,-150.0,0.00020176,2]
[320031428,1711088751658,-259.99960307,0.00020191,2]
[320031429,1711088751682,-250.0,0.00020193,2]
[320031430,1711088751706,-150.0,0.00020199,2]
[320031431,1711088751731,-153.9,0.00020251,2]
[320031432,1711088751756,-880.0,0.00020965,2]
[320031433,1711088751779,-159.38,0.0002101,2]
[320031434,1711088751801,-424.25275734,0.00021094,2]
[320031435,1711088752047,-1060.79590392,0.00021095,2]
[320031436,1711088752080,-916.6,0.00021096,2]
[320031437,1711088752106,-5113.93,0.00021096,2]
[320031438,1711088752132,-2000.0,0.00021096,2]
[320031439,1711088752160,-266.27,0.00021132,2]
[320031440,1711088752188,-160.0,0.00021149,2]
[320031441,1711088752214,-153.9,0.00021307,2]
[320031442,1711088752239,-2000.0,0.0002139,2]
[320031443,1711088752263,-3000.0,0.0002158,2]
[320031444,1711088752287,-6318.5674525,0.000217,2]
[320031445,1711088752313,-5110.6572999,0.0002179,2]
[320031446,1711088752343,-30013.45871535,0.00021798,2]
[320031447,1711088752372,-733.51974371,0.00021798,2]
[320031448,1711088752396,-10578.73900275,0.00021798,2]
[320031449,1711088752420,-12440.60106027,0.00021799,2]
[320031450,1711088752444,-157.0,0.00021863,2]
[320031451,1711088752466,-159.0,0.00021863,2]
[320031452,1711088752492,-55063.4776,0.0002189,2]
[320031453,1711088752515,-4377.74273321,0.0002189,2]
[320031454,1711088752539,-744.71785561,0.0002189,2]
[320031455,1711088752562,-3612.96359235,0.0002189,2]
[320031456,1711088752589,-1013.14640098,0.000219,2]
[320031457,1711088752614,-500.0,0.00021918,3]
[320031458,1711088752639,-350.71,0.00021918,10]
[320031459,1711088752663,-250.0,0.00021918,2]
[320031460,1711088752685,-800.0,0.00021973,2]
[320031461,1711088752707,-5000.0,0.00021988,2]
[320031462,1711088752735,-164.61589807,0.00021988,2]
[320031463,1711088752758,-280.4640909,0.00021989,2]
[320031464,1711088752780,-4709.59031684,0.00021989,2]
[320031465,1711088752802,-162.15280732,0.00021989,2]
[320031466,1711088752826,-500.0,0.00021989,2]
[320031467,1711088752849,-176.07420984,0.00021989,2]
[320031468,1711088752872,-300000.0,0.0002199,2]
[320031469,1711088752895,-99508.35498962,0.0002199,5]
[320031470,1711088756176,-125756.05436134,0.0002199,5]
[320031471,1711088756199,-392487.24980189,0.0002199,5]
[320031472,1711088756221,-81756.69583677,0.0002199,5]
[320031473,1711088760579,-99524.46915867,0.0002199,5]
[320031474,1711088760608,-500475.53084133,0.0002199,5]
[320031494,1711089032123,-452.29749972,0.00018398,2]
[320031495,1711089032132,-569.234,0.00018399,2]
[320031496,1711089032142,-1052.218,0.00018399,2]
[320031497,1711089032151,-960.0,0.00018399,2]
[320031498,1711089032161,-388.296,0.00018399,2]
[320031499,1711089032174,-1045.0,0.00018399,2]
[320031500,1711089032183,-457.0,0.00018399,2]
[320031501,1711089032193,-536.0,0.00018399,2]
[320031502,1711089032202,-1072.374,0.00018399,2]
[320031503,1711089032212,-1061.18364021,0.00019405,2]
[320031504,1711089032221,-423.47,0.00019407,2]
[320031505,1711089032230,-1000.0,0.00019502,2]
[320031506,1711089032239,-152.00753644,0.00020739,2]
[320031507,1711089032249,-550.0,0.00021,3]
[320031508,1711089032258,-174.84,0.00021193,2]
[320031509,1711089032267,-250.0,0.00021224,2]
[320031510,1711089032277,-916.61,0.00021393,2]
[320031511,1711089032286,-960.0,0.00021399,2]
[320031512,1711089032297,-1045.0,0.00021399,2]
[320031513,1711089032307,-457.0,0.00021399,2]
[320031514,1711089032316,-536.0,0.00021399,2]
[320031515,1711089032326,-689.0,0.000215,2]
[320031516,1711089032336,-423.47,0.00021671,2]
[320031517,1711089032345,-1000.0,0.00021711,2]
[320031518,1711089032355,-150.0,0.00021739,2]
[320031519,1711089032365,-152.0,0.00021863,2]
[320031520,1711089032375,-336.0,0.00021863,2]
[320031521,1711089032384,-155.0,0.00021863,2]
[320031522,1711089032394,-744.71785561,0.0002189,2]
[320031523,1711089032403,-300.0,0.00021899,2]
[320031524,1711089032412,-150.0,0.00021899,2]
[320031525,1711089032422,-3612.96359235,0.000219,2]
[320031526,1711089032431,-150.0,0.000219,2]
[320031527,1711089032441,-4586.83448598,0.000219,3]
[320031528,1711089032452,-500.0,0.00021918,3]
[320031529,1711089032461,-800.0,0.00021973,2]
[320031530,1711089032471,-424.25275734,0.00021977,2]
[320031531,1711089032481,-587.24614201,0.0002198,2]
[320031532,1711089032490,-280.4640909,0.00021988,2]
[320031533,1711089032500,-164.61589807,0.00021988,2]
[320031534,1711089032511,-733.51974371,0.00021988,2]
[320031535,1711089032520,-854.01857758,0.00021988,2]
[320031536,1711089032530,-4709.59031684,0.00021989,2]
[320031537,1711089032541,-5000.0,0.00021989,2]
[320031538,1711089032551,-120729.60871337,0.0002199,5]
[320031539,1711089032561,-155.0,0.0002199,2]
[320031541,1711089032570,-2199.7066512,0.0002199,2]
[320031543,1711089032580,-256.17866123,0.0002199,2]
[320031545,1711089032589,-1041.70521948,0.0002199,2]
[320031547,1711089032599,-1891.53474,0.0002199,2]
[320031549,1711089032608,-155.0,0.00021998,2]
[320031551,1711089032617,-155.0,0.00021998,2]
[320031553,1711089032626,-500.0,0.00021999,2]
[320031554,1711089032636,-176.07420984,0.00021999,2]
[320031556,1711089032645,-12779.70384812,0.00021999,2]
[320031562,1711089032780,-9626.92322859,0.00021999,2]
[320031563,1711089032794,-530.30957501,0.00021999,2]
[320031564,1711089032805,-1675.36234396,0.00021999,2]
[320031565,1711089032843,-518.63122438,0.00021999,2]
[320031566,1711089032860,-628.12349577,0.00021999,2]
[320031567,1711089032873,-10845.61314949,0.00021999,2]
[320031568,1711089032883,-4159.2739689,0.00022,2]
[320031569,1711089033176,-738.79121803,0.00022,2]
[320031666,1711089043137,-446.10576322,0.00018399,2]
[320031712,1711089043574,-156.89423678,0.00018399,2]
[320031713,1711089043584,-278.0,0.00018399,2]
[320031715,1711089043593,-581.255,0.00018399,2]
[320031716,1711089043602,-358.284,0.00018799,2]
[320031717,1711089043611,-804.331,0.00018799,2]
[320031718,1711089043620,-603.0,0.00021399,2]
[320031719,1711089043630,-358.0,0.00021799,2]
[320031720,1711089043639,-15730.61322826,0.00022,2]
[320031889,1711090233111,-406.43163995,0.00017998,2]
[320031890,1711090233124,-250.0,0.00017999,2]
[320031891,1711090233139,-461.09,0.00018479,2]
[320031892,1711090233154,-500.0,0.00018547,2]
[320031893,1711090233169,-2029.16531663,0.000186,2]
[320031894,1711090233183,-163.47416628,0.00018699,2]
[320031895,1711090233197,-960.0,0.00018799,2]
[320031896,1711090233209,-457.0,0.00018799,2]
[320031897,1711090233222,-536.0,0.00018799,2]
[320031898,1711090233236,-433.747,0.00018799,2]
[320031899,1711090233249,-278.0,0.00018799,2]
[320031900,1711090233262,-603.0,0.00018799,2]
[320031901,1711090233276,-150.458,0.00018799,2]
[320031902,1711090233287,-1137.0,0.00018799,2]
[320031903,1711090233302,-638.87548689,0.00018799,2]
[320031904,1711090233322,-162.12451311,0.00018799,2]
[320031905,1711090233336,-358.0,0.00018799,2]
[320031906,1711090233349,-150.457,0.00018799,2]
[320031907,1711090233361,-1204.293,0.00018799,2]
[320031908,1711090233375,-213.0,0.00018799,2]
[320031909,1711090233388,-1045.0,0.00018799,2]
[320031910,1711090233402,-750.0,0.00019095,2]
[320031911,1711090233416,-1000.0,0.00019643,2]
[320031912,1711090233431,-150.0,0.00019863,2]
[320031913,1711090233445,-1000.0,0.00019881,2]
[320031914,1711090233456,-150.34538036,0.0002,2]
[320031915,1711090233467,-150.0,0.00020053,2]
[320031916,1711090233479,-5000.0,0.0002019,2]
[320031917,1711090233492,-1250.0,0.00020191,2]
[320031919,1711090233506,-537.6,0.00020373,2]
[320031922,1711090233518,-250.0,0.0002039,2]
[320031924,1711090233530,-150.0,0.00020499,2]
[320031926,1711090233541,-163.47416625,0.00020533,2]
[320031929,1711090233553,-910.0,0.00020536,2]
[320031931,1711090233569,-250.0,0.00020546,2]
[320031933,1711090233580,-937.39,0.00020546,2]
[320031936,1711090233592,-158.92,0.00020549,2]
[320031938,1711090233603,-236.24,0.00020662,2]
[320031940,1711090233614,-158.92,0.00020668,2]
[320031943,1711090233626,-1500.0,0.00020739,2]
[320031945,1711090233638,-461.09,0.00020743,2]
[320031947,1711090233649,-158.92,0.00020787,2]
[320031949,1711090233660,-158.92,0.00020906,2]
[320031952,1711090233671,-158.92,0.00021025,2]
[320031954,1711090233682,-5733.41,0.00021096,2]
[320031956,1711090233693,-1826.8,0.00021096,2]
[320031959,1711090233705,-2000.0,0.00021096,2]
[320031961,1711090233716,-158.92,0.00021144,2]